fUST/lending_fUST_20240701
["ID","MTS","AMOUNT","RATE_DAILY","PERIOD"]
[330778759,1719775842747,-508.62190941,0.00015042,2]
[330778760,1719775842757,-500.0,0.00015042,2]
[330778762,1719775842766,-500.0,0.00015042,2]
[330778763,1719775842776,-500.0,0.00015042,2]
[330778764,1719775842785,-500.0,0.00015042,2]
[330778765,1719775842795,-326.45110222,0.00015042,2]
[330778766,1719775842804,-502.52353985,0.00015042,2]
[330778767,1719775842813,-500.0,0.00015042,2]
[330778768,1719775842823,-500.0,0.00015042,2]
[330778769,1719775842832,-500.0,0.00015042,2]
[330778770,1719775842842,-988.3,0.00015042,2]
[330778771,1719775842852,-500.0,0.00015042,2]
[330778772,1719775842861,-501.66297708,0.00015042,2]
[330778773,1719775842870,-500.0,0.00015042,2]
[330778774,1719775842880,-815.05,0.00015042,2]
[330778775,1719775842890,-500.0,0.00015042,2]
[330778776,1719775842900,-500.0,0.00015042,2]
[330778777,1719775842910,-500.0,0.00015042,2]
[330778778,1719775842921,-500.0,0.00015042,2]
[330778779,1719775842931,-500.0,0.00015042,2]
[330778780,1719775842940,-500.0,0.00015042,2]
[330778781,1719775842951,-188.49307056,0.00015042,2]
[330778782,1719775842961,-500.0,0.00015042,2]
[330778783,1719775842973,-500.0,0.00015042,2]
[330778784,1719775842986,-500.0,0.00015042,2]
[330778785,1719775842996,-500.0,0.00015042,2]
[330778786,1719775843007,-500.0,0.00015042,2]
[330778787,1719775843017,-500.0,0.00015042,2]
[330778789,1719775843027,-500.0,0.00015042,2]
[330778791,1719775843037,-500.0,0.00015042,2]
[330778792,1719775843047,-500.0,0.00015042,2]
[330778793,1719775843057,-500.0,0.00015042,2]
[330778794,1719775843067,-10923.88,0.00015042,2]
[330778795,1719775843077,-500.0,0.00015042,2]
[330778796,1719775843088,-500.0,0.00015042,2]
[330778798,1719775843098,-1000.26,0.00015042,2]
[330778801,1719775843109,-500.0,0.00015042,2]
[330778803,1719775843119,-500.0,0.00015042,2]
[330778804,1719775843129,-500.0,0.00015042,2]
[330778806,1719775843140,-203.71172782,0.00015042,2]
[330778808,1719775843151,-500.0,0.00015042,2]
[330778811,1719775843161,-500.0,0.00015042,2]
[330778813,1719775843172,-897.66,0.00015042,2]
[330778814,1719775843182,-500.0,0.00015042,2]
[330778815,1719775843192,-500.0,0.00015042,2]
[330778816,1719775843203,-500.0,0.00015042,2]
[330778817,1719775843324,-500.0,0.00015042,2]
[330778818,1719775843334,-292.90283825,0.00015042,2]
[330778819,1719775843346,-610.94209197,0.00015042,2]
[330778820,1719775843355,-500.0,0.00015042,2]
[330778821,1719775843366,-500.0,0.00015042,2]
[330778822,1719775843377,-2191.41,0.00015042,2]
[330778823,1719775843387,-500.0,0.00015042,2]
[330778824,1719775843396,-500.0,0.00015042,2]
[330778825,1719775843406,-427.29339011,0.00015042,2]
[330778826,1719775843415,-500.0,0.00015042,2]
[330778827,1719775843425,-500.0,0.00015042,2]
[330778828,1719775843436,-500.0,0.00015042,2]
[330778829,1719775843446,-500.0,0.00015042,2]
[330778830,1719775843456,-500.0,0.00015042,2]
[330778831,1719775843469,-500.0,0.00015042,2]
[330778832,1719775843480,-500.0,0.00015042,2]
[330778833,1719775843491,-500.0,0.00015042,2]
[330778834,1719775843501,-500.0,0.00015042,2]
[330778835,1719775843511,-517.8319729,0.00015042,2]
[330778836,1719775843522,-500.0,0.00015042,2]
[330778837,1719775843532,-500.0,0.00015042,2]
[330778838,1719775843543,-953.79,0.00015042,2]
[330778839,1719775843552,-500.0,0.00015042,2]
[330778840,1719775843563,-500.62278699,0.00015042,2]
[330778841,1719775843573,-1281.53,0.00015042,2]
[330778842,1719775843583,-500.0,0.00015042,2]
[330778843,1719775843594,-500.0,0.00015042,2]
[330778844,1719775843608,-500.0,0.00015042,2]
[330778845,1719775843618,-500.0,0.00015043,2]
[330778846,1719775843628,-500.0,0.00015043,2]
[330778847,1719775843639,-500.0,0.00015043,2]
[330778848,1719775843649,-500.0,0.00015043,2]
[330778849,1719775843659,-500.0,0.00015043,2]
[330778850,1719775843669,-500.0,0.00015043,2]
[330778851,1719775843683,-733.18,0.00015043,2]
[330778852,1719775843694,-829.94,0.00015043,2]
[330778853,1719775843704,-500.0,0.00015043,2]
[330778854,1719775843714,-500.0,0.00015043,2]
[330778855,1719775843725,-500.0,0.00015043,2]
[330778856,1719775843734,-500.0,0.00015043,2]
[330778857,1719775843744,-500.0,0.00015043,2]
[330778858,1719775843754,-500.0,0.00015043,2]
[330778859,1719775843764,-627.8,0.00015043,2]
[330778860,1719775843773,-504.73942185,0.00015043,2]
[330778861,1719775843784,-500.0,0.00015043,2]
[330778862,1719775843793,-1823.3,0.00015043,2]
[330778863,1719775843804,-500.0,0.00015043,2]
[330778864,1719775843814,-503.17700654,0.00015043,2]
[330778865,1719775843824,-500.0,0.00015043,2]
[330778866,1719775843833,-500.0,0.00015043,2]
[330778867,1719775843843,-500.0,0.00015043,2]
[330778868,1719775843853,-500.0,0.00015043,2]
[330778869,1719775843862,-500.0,0.00015043,2]
[330778870,1719775843872,-695.57,0.00015043,2]
[330778871,1719775843882,-500.0,0.00015043,2]
[330778872,1719775843891,-1356.41,0.00015043,2]
[330778873,1719775843900,-549.79723835,0.00015043,2]
[330778874,1719775843909,-593.7,0.00015043,2]
[330778875,1719775843919,-1479.37,0.00015043,2]
[330778876,1719775843929,-578.42,0.00015043,2]
[330778878,1719775843940,-1618.66,0.00015043,2]
[330778880,1719775843950,-500.0,0.00015043,2]
[330778882,1719775843960,-504.90985655,0.00015043,2]
[330778884,1719775843971,-500.0,0.00015043,2]
[330778886,1719775843981,-500.0,0.00015043,2]
[330778888,1719775843990,-500.0,0.00015043,2]
[330778890,1719775844000,-500.0,0.00015043,2]
[330778892,1719775844009,-500.0,0.00015043,2]
[330778894,1719775844019,-846.27,0.00015043,2]
[330778896,1719775844028,-500.0,0.00015043,2]
[330778898,1719775844038,-1088.84,0.00015043,2]
[330778900,1719775844047,-500.0,0.00015043,2]
[330778902,1719775844057,-844.96,0.00015043,2]
[330778904,1719775844067,-1372.36,0.00015043,2]
[330778906,1719775844077,-500.0,0.00015043,2]
[330778908,1719775844086,-500.0,0.00015043,2]
[330778910,1719775844096,-500.0,0.00015043,2]
[330778912,1719775844105,-500.0,0.00015043,2]
[330778914,1719775844115,-500.0,0.00015043,2]
[330778916,1719775844124,-501.8330513,0.00015043,2]
[330778918,1719775844134,-500.0,0.00015043,2]
[330778919,1719775844144,-500.0,0.00015043,2]
[330778922,1719775844153,-500.0,0.00015043,2]
[330778923,1719775844163,-502.16022671,0.00015043,2]
[330778925,1719775844172,-500.0,0.00015043,2]
[330778928,1719775844182,-500.0,0.00015043,2]
[330778930,1719775844192,-500.0,0.00015043,2]
[330778932,1719775844201,-500.0,0.00015044,2]
[330778933,1719775844211,-500.0,0.00015044,2]
[330778935,1719775844221,-500.0,0.00015044,2]
[330778937,1719775844230,-500.0,0.00015044,2]
[330778939,1719775844240,-500.0,0.00015044,2]
[330778941,1719775844250,-500.0,0.00015044,2]
[330778943,1719775844260,-500.0,0.00015044,2]
[330778945,1719775844270,-500.0,0.00015044,2]
[330778947,1719775844279,-15125.88,0.00015044,2]
[330778949,1719775844289,-500.0,0.00015044,2]
[330778951,1719775844299,-500.0,0.00015044,2]
[330778953,1719775844309,-500.0,0.00015044,2]
[330778955,1719775844319,-500.0,0.00015044,2]
[330778957,1719775844329,-523.88,0.00015044,2]
[330778959,1719775844339,-511.44837784,0.00015045,2]
[330778961,1719775844348,-518.66411697,0.00015045,2]
[330778963,1719775844358,-270.87016413,0.00015045,2]
[330778965,1719775844369,-500.0,0.00015045,2]
[330778967,1719775844379,-500.0,0.00015045,2]
[330778968,1719775844388,-500.0,0.00015045,2]
[330778969,1719775844398,-500.0,0.00015045,2]
[330778970,1719775844407,-500.0,0.00015045,2]
[330778972,1719775844417,-500.0,0.00015045,2]
[330778974,1719775844427,-504.08202438,0.00015045,2]
[330778976,1719775844437,-500.0,0.00015045,2]
[330778977,1719775844447,-500.0,0.00015045,2]
[330778978,1719775844456,-500.0,0.00015045,2]
[330778979,1719775844467,-501.64471739,0.00015045,2]
[330778980,1719775844476,-500.0,0.00015045,2]
[330778981,1719775844485,-500.77469076,0.00015045,2]
[330778982,1719775844494,-500.0,0.00015045,2]
[330778983,1719775844504,-501.10726315,0.00015045,2]
[330778984,1719775844513,-501.07835622,0.00015045,2]
[330778985,1719775844523,-497.58966445,0.00015045,2]
[330778986,1719775844533,-500.0,0.00015045,2]
[330778987,1719775844543,-500.0,0.00015045,2]
[330778988,1719775844552,-500.0,0.00015045,2]
[330778989,1719775844562,-500.0,0.00015045,2]
[330778990,1719775844571,-500.0,0.00015045,2]
[330778991,1719775844581,-500.0,0.00015045,2]
[330778992,1719775844591,-500.0,0.00015045,2]
[330778993,1719775844605,-500.0,0.00015045,2]
[330778994,1719775844615,-500.0,0.00015045,2]
[330778995,1719775844624,-500.9947283,0.00015045,2]
[330778996,1719775844635,-500.0,0.00015045,2]
[330778997,1719775844644,-500.0,0.00015045,2]
[330778998,1719775844654,-500.0,0.00015045,2]
[330778999,1719775844663,-633.91,0.00015045,2]
[330779000,1719775844674,-500.91677921,0.00015045,2]
[330779001,1719775844684,-887.34,0.00015045,2]
[330779002,1719775844693,-500.0,0.00015045,2]
[330779003,1719775844703,-500.0,0.00015045,2]
[330779004,1719775844712,-500.97532239,0.00015045,2]
[330779005,1719775844723,-500.0,0.00015045,2]
[330779006,1719775844733,-513.4056479,0.00015045,2]
[330779007,1719775844743,-500.0,0.00015045,2]
[330779008,1719775844753,-500.0,0.00015045,2]
[330779009,1719775844764,-500.0,0.00015045,2]
[330779010,1719775844774,-501.05769785,0.00015045,2]
[330779011,1719775844783,-500.0,0.00015045,2]
[330779012,1719775844793,-500.0,0.00015045,2]
[330779013,1719775844802,-606.88,0.00015045,2]
[330779014,1719775844812,-1069.55,0.00015045,2]
[330779015,1719775844821,-501.61528778,0.00015045,2]
[330779016,1719775844831,-500.0,0.00015045,2]
[330779017,1719775844840,-500.0,0.00015045,2]
[330779018,1719775844850,-500.0,0.00015045,2]
[330779019,1719775844860,-565.13,0.00015045,2]
[330779020,1719775844869,-2076.56,0.00015045,2]
[330779021,1719775844878,-500.0,0.00015045,2]
[330779022,1719775844888,-8754.82,0.00015045,2]
[330779023,1719775844898,-517.1,0.00015045,2]
[330779024,1719775844908,-292.863491,0.00015045,2]
[330779025,1719775844918,-500.0,0.00015046,2]
[330779026,1719775844928,-500.0,0.00015046,2]
[330779027,1719775844938,-500.0,0.00015046,2]
[330779028,1719775844948,-500.0,0.00015046,2]
[330779029,1719775844957,-500.0,0.00015046,2]
[330779030,1719775844967,-1802.98,0.00015046,2]
[330779031,1719775844977,-500.0,0.00015046,2]
[330779032,1719775844987,-1278.86,0.00015046,2]
[330779033,1719775844997,-1317.19,0.00015046,2]
[330779034,1719775845006,-500.0,0.00015046,2]
[330779035,1719775845016,-14575.3,0.00015046,2]
[330779036,1719775845026,-153.0,0.00015429,2]
[330779037,1719775845036,-153.0,0.00015429,2]
[330779038,1719775845045,-153.0,0.0001543,2]
[330779039,1719775845055,-153.0,0.0001543,2]
[330779040,1719775845065,-153.0,0.00015431,2]
[330779041,1719775845074,-153.0,0.00015431,2]
[330779042,1719775845084,-500.0,0.00015587,2]
[330779043,1719775845094,-702.8,0.00015588,2]
[330779044,1719775845103,-500.0,0.00015588,2]
[330779045,1719775845113,-4668.12,0.00015588,2]
[330779046,1719775845123,-4504.32,0.00015588,2]
[330779047,1719775845133,-2378.36,0.00015588,2]
[330779048,1719775845143,-500.0,0.00015588,2]
[330779049,1719775845153,-2086.45,0.00015588,2]
[330779050,1719775845162,-2122.65,0.00015588,2]
[330779051,1719775845172,-2028.41,0.00015588,2]
[330779052,1719775845181,-621.21,0.00015588,2]
[330779053,1719775845191,-6829.97,0.00015588,2]
[330779054,1719775845202,-1933.74,0.00015588,2]
[330779055,1719775845211,-500.0,0.00015588,2]
[330779056,1719775845222,-589.08,0.00015588,2]
[330779057,1719775845232,-17726.31,0.00015588,2]
[330779058,1719775845241,-2515.04,0.00015588,2]
[330779059,1719775845251,-4400.89,0.00015588,2]
[330779060,1719775845261,-506.64,0.00015588,2]
[330779061,1719775845271,-500.0,0.00015588,2]
[330779062,1719775845281,-1046.51,0.00015588,2]
[330779063,1719775845291,-2277.06,0.00015588,2]
[330779064,1719775845300,-1992.35,0.00015588,2]
[330779065,1719775845310,-1910.87,0.00015589,2]
[330779066,1719775845320,-500.0,0.00015589,2]
[330779067,1719775845330,-500.0,0.00015589,2]
[330779068,1719775845340,-500.0,0.00015589,2]
[330779069,1719775845350,-500.0,0.00015589,2]
[330779070,1719775845359,-500.0,0.00015589,2]
[330779071,1719775845370,-2306.45,0.00015589,2]
[330779072,1719775845380,-500.0,0.00015589,2]
[330779073,1719775845389,-500.0,0.00015589,2]
[330779074,1719775845399,-514.12,0.00015589,2]
[330779075,1719775845408,-1254.94,0.00015589,2]
[330779076,1719775845418,-2181.37,0.00015589,2]
[330779077,1719775845427,-2728.97,0.00015589,2]
[330779078,1719775845437,-661.86,0.00015589,2]
[330779079,1719775845446,-500.0,0.00015589,2]
[330779080,1719775845455,-506.8484284,0.00015589,2]
[330779081,1719775845464,-500.0,0.00015589,2]
[330779082,1719775845475,-912.07,0.00015589,2]
[330779083,1719775845484,-659.72,0.00015589,2]
[330779084,1719775845494,-1634.84,0.00015589,2]
[330779085,1719775845602,-506.28796001,0.00015589,2]
[330779086,1719775845612,-500.0,0.00015589,2]
[330779087,1719775845622,-500.0,0.00015589,2]
[330779088,1719775845633,-500.0,0.00015589,2]
[330779089,1719775845643,-500.0,0.00015589,2]
[330779090,1719775845652,-1397.79,0.00015589,2]
[330779091,1719775845662,-18287.66,0.00015589,2]
[330779092,1719775845674,-500.0,0.00015589,2]
[330779093,1719775845684,-720.15,0.00015589,2]
[330779094,1719775845694,-961.27,0.00015589,2]
[330779095,1719775845704,-500.0,0.00015589,2]
[330779096,1719775845714,-779.73,0.00015589,2]
[330779097,1719775845724,-773.44,0.00015589,2]
[330779098,1719775845733,-500.0,0.00015589,2]
[330779099,1719775845743,-656.52,0.00015589,2]
[330779100,1719775845753,-500.0,0.00015589,2]
[330779101,1719775845763,-500.0,0.00015589,2]
[330779102,1719775845773,-237.82103358,0.00015589,2]
[330779103,1719775845783,-500.0,0.00015589,2]
[330779104,1719775845793,-285.5,0.00015589,2]
[330779105,1719775845802,-500.0,0.00015589,2]
[330779106,1719775845812,-713.51,0.00015589,2]
[330779107,1719775845822,-500.0,0.00015589,2]
[330779108,1719775845832,-500.0,0.00015589,2]
[330779109,1719775845841,-11012.17,0.00015589,2]
[330779110,1719775845851,-7329.46,0.00015589,2]
[330779111,1719775845860,-802.06,0.00015589,2]
[330779112,1719775845869,-3618.63,0.00015589,2]
[330779113,1719775845879,-2518.22,0.00015589,2]
[330779114,1719775845888,-1575.31,0.00015589,2]
[330779115,1719775845897,-500.0,0.00015589,2]
[330779116,1719775845907,-706.39,0.00015589,2]
[330779117,1719775845916,-849.86,0.00015589,2]
[330779118,1719775845925,-852.01,0.00015589,2]
[330779119,1719775845934,-500.0,0.00015589,2]
[330779120,1719775845944,-500.0,0.00015589,2]
[330779121,1719775845954,-630.82,0.00015589,2]
[330779122,1719775845963,-500.0,0.00015589,2]
[330779123,1719775845974,-1466.0,0.00015589,2]
[330779124,1719775845984,-500.0,0.00015589,2]
[330779125,1719775845993,-999.22,0.00015589,2]
[330779126,1719775846003,-500.0,0.00015589,2]
[330779127,1719775846012,-1749.41,0.00015589,2]
[330779129,1719775846022,-941.53,0.00015589,2]
[330779132,1719775846032,-1183.03,0.00015589,2]
[330779134,1719775846041,-500.0,0.00015589,2]
[330779135,1719775846050,-500.0,0.00015589,2]
[330779136,1719775846059,-500.0,0.00015589,2]
[330779137,1719775846068,-500.0,0.00015589,2]
[330779138,1719775846078,-552.24,0.00015589,2]
[330779139,1719775846087,-1830.57,0.00015589,2]
[330779140,1719775846097,-500.0,0.00015589,2]
[330779141,1719775846106,-500.0,0.0001559,2]
[330779142,1719775846116,-500.0,0.0001559,2]
[330779143,1719775846126,-500.0,0.0001559,2]
[330779144,1719775846136,-500.0,0.0001559,2]
[330779145,1719775846152,-500.0,0.0001559,2]
[330779146,1719775846176,-500.0,0.0001559,2]
[330779147,1719775846187,-500.0,0.0001559,2]
[330779148,1719775846196,-500.0,0.0001559,2]
[330779149,1719775846204,-500.0,0.0001559,2]
[330779150,1719775846213,-788.81,0.0001559,2]
[330779151,1719775846225,-500.0,0.0001559,2]
[330779152,1719775846235,-500.0,0.0001559,2]
[330779153,1719775846249,-950.62,0.0001559,2]
[330779154,1719775846259,-500.0,0.0001559,2]
[330779155,1719775846268,-500.0,0.0001559,2]
[330779156,1719775846277,-500.0,0.0001559,2]
[330779158,1719775846287,-554.79,0.0001559,2]
[330779160,1719775846297,-653.05,0.0001559,2]
[330779162,1719775846307,-500.0,0.0001559,2]
[330779164,1719775846316,-515.15,0.0001559,2]
[330779166,1719775846326,-500.0,0.0001559,2]
[330779168,1719775846335,-521.16828657,0.0001559,2]
[330779170,1719775846345,-355.64582305,0.0001559,2]
[330779172,1719775846355,-500.0,0.0001559,2]
[330779174,1719775846366,-500.0,0.0001559,2]
[330779176,1719775846377,-500.0,0.0001559,2]
[330779178,1719775846387,-500.0,0.0001559,2]
[330779180,1719775846398,-548.91,0.0001559,2]
[330779182,1719775846409,-500.0,0.0001559,2]
[330779183,1719775846418,-500.0,0.0001559,2]
[330779185,1719775846428,-501.28598276,0.0001559,2]
[330779187,1719775846437,-500.0,0.0001559,2]
[330779189,1719775846447,-500.0,0.0001559,2]
[330779191,1719775846457,-1457.4,0.0001559,2]
[330779193,1719775846469,-500.0,0.0001559,2]
[330779195,1719775846479,-504.59801319,0.0001559,2]
[330779196,1719775846488,-500.0,0.0001559,2]
[330779198,1719775846498,-135.59461434,0.0001559,2]
[330779222,1719775846738,-409.53538566,0.0001559,2]
[330779224,1719775846748,-288.87662008,0.0001559,2]
[330779251,1719775846886,-211.12337992,0.0001559,2]
[330779254,1719775846896,-500.0,0.0001559,2]
[330779257,1719775846905,-441.86999058,0.0001559,2]
[330779260,1719775846919,-58.13000942,0.0001559,2]
[330779263,1719775846928,-500.0,0.0001559,2]
[330779265,1719775846938,-500.0,0.0001559,2]
[330779267,1719775846947,-500.0,0.0001559,2]
[330779269,1719775846956,-712.52,0.0001559,2]
[330779271,1719775846967,-500.0,0.0001559,2]
[330779273,1719775846976,-500.0,0.0001559,2]
[330779275,1719775846986,-570.78,0.0001559,2]
[330779277,1719775846995,-500.0,0.0001559,2]
[330779278,1719775847005,-500.0,0.0001559,2]
[330779280,1719775847015,-500.0,0.0001559,2]
[330779282,1719775847024,-500.0,0.0001559,2]
[330779284,1719775847034,-500.0,0.0001559,2]
[330779286,1719775847043,-500.0,0.0001559,2]
[330779288,1719775847053,-567.09,0.0001559,2]
[330779290,1719775847062,-621.72,0.0001559,2]
[330779292,1719775847072,-500.0,0.0001559,2]
[330779294,1719775847082,-500.0,0.0001559,2]
[330779296,1719775847091,-500.0,0.0001559,2]
[330779298,1719775847100,-500.0,0.0001559,2]
[330779299,1719775847110,-500.0,0.0001559,2]
[330779301,1719775847120,-500.0,0.0001559,2]
[330779303,1719775847130,-500.0,0.0001559,2]
[330779305,1719775847139,-500.0,0.0001559,2]
[330779307,1719775847148,-500.0,0.0001559,2]
[330779309,1719775847158,-988.3,0.0001559,2]
[330779311,1719775847167,-500.0,0.0001559,2]
[330779313,1719775847177,-228.76660963,0.0001559,2]
[330779316,1719775847190,-586.28339037,0.0001559,2]
[330779317,1719775847199,-500.0,0.0001559,2]
[330779319,1719775847210,-500.0,0.0001559,2]
[330779321,1719775847219,-500.0,0.0001559,2]
[330779322,1719775847229,-500.0,0.0001559,2]
[330779323,1719775847238,-500.0,0.0001559,2]
[330779324,1719775847248,-500.0,0.0001559,2]
[330779325,1719775847259,-10923.88,0.0001559,2]
[330779326,1719775847268,-500.0,0.0001559,2]
[330779327,1719775847277,-1000.26,0.0001559,2]
[330779328,1719775847287,-244.51612004,0.0001559,2]
[330779329,1719775847296,-500.0,0.0001559,2]
[330779330,1719775847306,-500.0,0.0001559,2]
[330779331,1719775847318,-897.66,0.0001559,2]
[330779332,1719775847328,-500.0,0.0001559,2]
[330779333,1719775847338,-500.0,0.0001559,2]
[330779334,1719775847347,-500.0,0.0001559,2]
[330779335,1719775847356,-500.0,0.0001559,2]
[330779336,1719775847476,-2191.41,0.0001559,2]
[330779337,1719775847486,-500.0,0.0001559,2]
[330779338,1719775847496,-500.0,0.0001559,2]
[330779339,1719775847506,-500.0,0.0001559,2]
[330779340,1719775847516,-500.0,0.0001559,2]
[330779341,1719775847526,-500.0,0.0001559,2]
[330779342,1719775847536,-500.0,0.0001559,2]
[330779343,1719775847545,-500.0,0.0001559,2]
[330779344,1719775847555,-953.79,0.0001559,2]
[330779345,1719775847565,-1281.53,0.0001559,2]
[330779346,1719775847575,-500.0,0.00015591,2]
[330779347,1719775847585,-500.0,0.00015591,2]
[330779348,1719775847599,-500.0,0.00015591,2]
[330779349,1719775847610,-500.0,0.00015591,2]
[330779350,1719775847619,-500.0,0.00015591,2]
[330779351,1719775847629,-733.18,0.00015591,2]
[330779352,1719775847639,-829.94,0.00015591,2]
[330779353,1719775847649,-500.0,0.00015591,2]
[330779354,1719775847659,-500.0,0.00015591,2]
[330779355,1719775847669,-500.0,0.00015591,2]
[330779356,1719775847679,-627.8,0.00015591,2]
[330779357,1719775847689,-500.0,0.00015591,2]
[330779358,1719775847698,-1823.3,0.00015591,2]
[330779359,1719775847708,-500.0,0.00015591,2]
[330779360,1719775847717,-500.0,0.00015591,2]
[330779361,1719775847727,-500.0,0.00015591,2]
[330779362,1719775847737,-695.57,0.00015591,2]
[330779363,1719775847746,-1356.41,0.00015591,2]
[330779364,1719775847756,-593.7,0.00015591,2]
[330779365,1719775847766,-1479.37,0.00015591,2]
[330779366,1719775847775,-578.42,0.00015591,2]
[330779367,1719775847785,-1618.66,0.00015591,2]
[330779368,1719775847795,-500.0,0.00015591,2]
[330779369,1719775847804,-500.0,0.00015591,2]
[330779370,1719775847814,-500.0,0.00015591,2]
[330779371,1719775847824,-500.0,0.00015591,2]
[330779372,1719775847834,-500.0,0.00015591,2]
[330779373,1719775847843,-846.27,0.00015591,2]
[330779374,1719775847853,-1088.84,0.00015591,2]
[330779375,1719775847863,-500.0,0.00015591,2]
[330779376,1719775847873,-844.96,0.00015591,2]
[330779377,1719775847883,-1372.36,0.00015591,2]
[330779378,1719775847892,-500.0,0.00015591,2]
[330779379,1719775847903,-500.0,0.00015591,2]
[330779380,1719775847913,-500.0,0.00015591,2]
[330779381,1719775847923,-500.0,0.00015591,2]
[330779382,1719775847933,-500.0,0.00015591,2]
[330779383,1719775847943,-500.0,0.00015591,2]
[330779384,1719775847952,-500.0,0.00015591,2]
[330779385,1719775847962,-500.0,0.00015592,2]
[330779386,1719775847972,-213.17470959,0.00015592,2]
[330779387,1719775847982,-500.0,0.00015592,2]
[330779388,1719775847991,-15125.88,0.00015592,2]
[330779389,1719775848001,-500.0,0.00015592,2]
[330779390,1719775848011,-523.88,0.00015592,2]
[330779391,1719775848020,-500.0,0.00015593,2]
[330779392,1719775848030,-500.0,0.00015593,2]
[330779393,1719775848040,-500.0,0.00015593,2]
[330779394,1719775848049,-500.0,0.00015593,2]
[330779395,1719775848059,-500.0,0.00015593,2]
[330779396,1719775848068,-500.0,0.00015593,2]
[330779397,1719775848078,-633.91,0.00015593,2]
[330779398,1719775848087,-887.34,0.00015593,2]
[330779399,1719775848097,-500.0,0.00015593,2]
[330779400,1719775848106,-500.0,0.00015593,2]
[330779401,1719775848116,-500.0,0.00015593,2]
[330779402,1719775848126,-500.0,0.00015593,2]
[330779403,1719775848136,-500.0,0.00015593,2]
[330779404,1719775848146,-606.88,0.00015593,2]
[330779405,1719775848155,-1069.55,0.00015593,2]
[330779406,1719775848165,-565.13,0.00015593,2]
[330779407,1719775848175,-2076.56,0.00015593,2]
[330779408,1719775848186,-5408.7978373,0.00015593,2]
[330779409,1719775848404,-500.00251698,0.00015593,2]
[330779410,1719775848703,-500.0,0.00015039,2]
[330779411,1719775848713,-500.0,0.00015039,2]
[330779412,1719775848724,-2846.01964572,0.00015593,2]
[330779413,1719775848734,-517.1,0.00015593,2]
[330779414,1719775848744,-1802.98,0.00015594,2]
[330779415,1719775848754,-645.07580406,0.00015594,2]
[330779416,1719775848764,-1278.86,0.00015594,2]
[330779417,1719775848774,-1317.19,0.00015594,2]
[330779418,1719775848785,-8212.24285072,0.00015594,2]
[330779419,1719775848810,-595.10283752,0.00015039,2]
[330779420,1719775848821,-600.89716248,0.00015594,2]
[330779421,1719775848856,878.08736575,0.00014942,2]
[330779422,1719775866858,1706.6204806,0.00014513,2]
[330779426,1719775950149,705.58178986,0.00014938,2]
[330779429,1719776063354,24900.0,0.00014042,2]
[330779432,1719776099799,298.75379421,0.00014999,2]
[330779433,1719776107812,1870.74793007,0.00014939,2]
[330779434,1719776110817,512.3143884,0.00014999,2]
[330779435,1719776133481,173.851768,0.00014042,2]